[Event "Titled Tuesday Blitz May 2 Late 2023"]
[White "Bortnyk, Mykola"]
[Black "Caruana, Fabiano"]
[WhiteFideId "14120836"]
[BlackFideId "2020009"]
[WhiteElo "2582"]
[BlackElo "2837"]
[Result "0-1"]
[Round "10"]
[TimeControl "180+2"]
[Date "2023.05.02"]
[WhiteClock "0:00:01"]
[BlackClock "0:00:10"]

1. e4 {[%clk 0:03:00]}  e5 {[%clk 0:02:58]} 2. Nf3 {[%clk 0:03:01]}  Nc6 {[%clk 0:02:59]} 3. Bb5 {[%clk 0:03:01]}  a6 {[%clk 0:02:58]} 4. Ba4 {[%clk 0:03:01]}  Nf6 {[%clk 0:02:58]} 5. Qe2 {[%clk 0:03:01]}  b5 {[%clk 0:02:58]} 6. Bb3 {[%clk 0:03:01]}  Bc5 {[%clk 0:02:58]} 7. c3 {[%clk 0:03:01]}  d6 {[%clk 0:02:58]} 8. O-O {[%clk 0:03:00]}  O-O {[%clk 0:02:59]} 9. Rd1 {[%clk 0:03:01]}  Re8 {[%clk 0:02:57]} 10. h3 {[%clk 0:02:58]}  h6 {[%clk 0:02:56]} 11. d3 {[%clk 0:02:56]}  Bb6 {[%clk 0:02:52]} 12. a4 {[%clk 0:02:54]}  Rb8 {[%clk 0:02:50]} 13. axb5 {[%clk 0:02:54]}  axb5 {[%clk 0:02:50]} 14. Be3 {[%clk 0:02:52]}  Ne7 {[%clk 0:02:40]} 15. Nh4 {[%clk 0:02:43]}  g5 {[%clk 0:02:34]} 16. Bxb6 {[%clk 0:02:43]}  Rxb6 {[%clk 0:02:34]} 17. Qf3 {[%clk 0:02:37]}  Kg7 {[%clk 0:02:33]} 18. Nf5+ {[%clk 0:02:26]}  Nxf5 {[%clk 0:02:31]} 19. exf5 {[%clk 0:02:27]}  Bb7 {[%clk 0:02:24]} 20. Qg3 {[%clk 0:02:21]}  Qd7 {[%clk 0:01:52]} 21. Ra5 {[%clk 0:02:05]}  Qxf5 {[%clk 0:01:49]} 22. Na3 {[%clk 0:02:06]}  Nh5 {[%clk 0:01:40]} 23. Qg4 {[%clk 0:02:01]}  Qxg4 {[%clk 0:01:38]} 24. hxg4 {[%clk 0:02:02]}  Nf4 {[%clk 0:01:19]} 25. g3 {[%clk 0:01:56]}  Nh3+ {[%clk 0:01:17]} 26. Kf1 {[%clk 0:01:55]}  Bf3 {[%clk 0:01:15]} 27. Rd2 {[%clk 0:01:54]}  b4 {[%clk 0:01:11]} 28. cxb4 {[%clk 0:01:42]}  Rxb4 {[%clk 0:01:12]} 29. Bd5 {[%clk 0:01:31]}  Bxg4 {[%clk 0:00:54]} 30. Rc2 {[%clk 0:01:26]}  Re7 {[%clk 0:00:47]} 31. Ra7 {[%clk 0:01:23]}  Bh5 {[%clk 0:00:32]} 32. b3 {[%clk 0:01:05]}  Bg6 {[%clk 0:00:30]} 33. Rcxc7 {[%clk 0:01:03]}  Rxc7 {[%clk 0:00:30]} 34. Rxc7 {[%clk 0:01:04]}  g4 {[%clk 0:00:28]} 35. Ke2 {[%clk 0:01:01]}  Ng5 {[%clk 0:00:26]} 36. Nc2 {[%clk 0:00:55]}  Rb5 {[%clk 0:00:24]} 37. Bc4 {[%clk 0:00:55]}  Rb6 {[%clk 0:00:21]} 38. b4 {[%clk 0:00:54]}  h5 {[%clk 0:00:20]} 39. b5 {[%clk 0:00:53]}  d5 {[%clk 0:00:20]} 40. Bxd5 {[%clk 0:00:47]}  Rxb5 {[%clk 0:00:20]} 41. Bc4 {[%clk 0:00:47]}  Rb2 {[%clk 0:00:20]} 42. Kd1 {[%clk 0:00:46]}  Nf3 {[%clk 0:00:19]} 43. Kc1 {[%clk 0:00:44]}  Rb8 {[%clk 0:00:18]} 44. Re7 {[%clk 0:00:37]}  Ra8 {[%clk 0:00:17]} 45. Ne3 {[%clk 0:00:34]}  Ra1+ {[%clk 0:00:14]} 46. Kb2 {[%clk 0:00:35]}  Re1 {[%clk 0:00:14]} 47. Ka3 {[%clk 0:00:30]}  Re2 {[%clk 0:00:14]} 48. d4 {[%clk 0:00:30]}  Rxf2 {[%clk 0:00:11]} 49. dxe5 {[%clk 0:00:31]}  Rd2 {[%clk 0:00:08]} 50. Kb4 {[%clk 0:00:27]}  Rd4 {[%clk 0:00:08]} 51. e6 {[%clk 0:00:20]}  Re4 {[%clk 0:00:06]} 52. Ng2 {[%clk 0:00:18]}  Kf6 {[%clk 0:00:06]} 53. Re8 {[%clk 0:00:13]}  Ne5 {[%clk 0:00:06]} 54. Rc8 {[%clk 0:00:11]}  Rxc4+ {[%clk 0:00:06]} 55. Rxc4 {[%clk 0:00:11]}  Nxc4 {[%clk 0:00:07]} 56. Kxc4 {[%clk 0:00:11]}  Kxe6 {[%clk 0:00:08]} 57. Kd4 {[%clk 0:00:11]}  Kf5 {[%clk 0:00:08]} 58. Ke3 {[%clk 0:00:11]}  Kg5 {[%clk 0:00:08]} 59. Kd4 {[%clk 0:00:09]}  f6 {[%clk 0:00:08]} 60. Ke3 {[%clk 0:00:09]}  Be8 {[%clk 0:00:08]} 61. Nh4 {[%clk 0:00:08]}  Bc6 {[%clk 0:00:09]} 62. Kd4 {[%clk 0:00:07]}  f5 {[%clk 0:00:08]} 63. Ke5 {[%clk 0:00:08]}  Be4 {[%clk 0:00:09]} 64. Kd4 {[%clk 0:00:05]}  f4 {[%clk 0:00:09]} 65. Kxe4 {[%clk 0:00:06]}  fxg3 {[%clk 0:00:09]} 66. Ng2 {[%clk 0:00:05]}  h4 {[%clk 0:00:09]} 67. Ne3 {[%clk 0:00:02]}  h3 {[%clk 0:00:09]} 68. Nf1 {[%clk 0:00:01]}  g2 {[%clk 0:00:10]} 0-1


[Site "https://www.chess.com"]

[Event "Titled Tuesday Blitz May 2 Late 2023"]
[White "Sarana, Alexey"]
[Black "Babazada, Khazar"]
[WhiteFideId "24133795"]
[BlackFideId "13413554"]
[WhiteElo "2714"]
[BlackElo "2351"]
[Result "0-1"]
[Round "10"]
[TimeControl "180+2"]
[Date "2023.05.02"]
[WhiteClock "0:00:02"]
[BlackClock "0:00:05"]

1. d4 {[%clk 0:02:55]}  Nf6 {[%clk 0:02:59]} 2. c4 {[%clk 0:02:56]}  e6 {[%clk 0:02:59]} 3. Nc3 {[%clk 0:02:56]}  Bb4 {[%clk 0:02:59]} 4. e3 {[%clk 0:02:57]}  O-O {[%clk 0:02:56]} 5. Bd3 {[%clk 0:02:58]}  d5 {[%clk 0:02:55]} 6. a3 {[%clk 0:02:58]}  Bxc3+ {[%clk 0:02:54]} 7. bxc3 {[%clk 0:02:59]}  dxc4 {[%clk 0:02:55]} 8. Bxc4 {[%clk 0:03:00]}  c5 {[%clk 0:02:56]} 9. Ne2 {[%clk 0:03:00]}  Qc7 {[%clk 0:02:56]} 10. Ba2 {[%clk 0:03:01]}  b5 {[%clk 0:02:55]} 11. O-O {[%clk 0:02:59]}  Bb7 {[%clk 0:02:53]} 12. f3 {[%clk 0:02:59]}  Nbd7 {[%clk 0:02:50]} 13. e4 {[%clk 0:02:59]}  Nb6 {[%clk 0:02:40]} 14. Bg5 {[%clk 0:02:58]}  Nfd7 {[%clk 0:02:37]} 15. Ng3 {[%clk 0:02:55]}  Nc4 {[%clk 0:01:59]} 16. Kh1 {[%clk 0:02:33]}  f6 {[%clk 0:01:55]} 17. Bc1 {[%clk 0:02:32]}  Rfd8 {[%clk 0:01:53]} 18. Qe2 {[%clk 0:02:29]}  Ndb6 {[%clk 0:01:52]} 19. a4 {[%clk 0:02:04]}  cxd4 {[%clk 0:01:03]} 20. cxd4 {[%clk 0:02:02]}  bxa4 {[%clk 0:01:03]} 21. Rd1 {[%clk 0:01:55]}  Rac8 {[%clk 0:00:57]} 22. Rb1 {[%clk 0:01:53]}  Ba6 {[%clk 0:00:49]} 23. Qf2 {[%clk 0:01:53]}  Kh8 {[%clk 0:00:44]} 24. Nh5 {[%clk 0:01:53]}  Qf7 {[%clk 0:00:23]} 25. Qh4 {[%clk 0:01:52]}  Ne5 {[%clk 0:00:21]} 26. Ba3 {[%clk 0:01:24]}  Bc4 {[%clk 0:00:20]} 27. dxe5 {[%clk 0:01:17]}  Bxa2 {[%clk 0:00:21]} 28. exf6 {[%clk 0:01:18]}  g6 {[%clk 0:00:10]} 29. Ng7 {[%clk 0:00:29]}  Bxb1 {[%clk 0:00:09]} 30. Rxb1 {[%clk 0:00:30]}  Nc4 {[%clk 0:00:09]} 31. Be7 {[%clk 0:00:29]}  Nd2 {[%clk 0:00:05]} 32. Ra1 {[%clk 0:00:24]}  Nb3 {[%clk 0:00:05]} 33. Re1 {[%clk 0:00:20]}  Rd7 {[%clk 0:00:06]} 34. Ba3 {[%clk 0:00:19]}  Rcd8 {[%clk 0:00:05]} 35. e5 {[%clk 0:00:18]}  Rd1 {[%clk 0:00:05]} 36. h3 {[%clk 0:00:18]}  Rxe1+ {[%clk 0:00:05]} 37. Qxe1 {[%clk 0:00:19]}  Nd4 {[%clk 0:00:04]} 38. Qe4 {[%clk 0:00:18]}  Nf5 {[%clk 0:00:04]} 39. Nxf5 {[%clk 0:00:16]}  gxf5 {[%clk 0:00:04]} 40. Qxa4 {[%clk 0:00:15]}  Qg6 {[%clk 0:00:04]} 41. Qc2 {[%clk 0:00:09]}  h5 {[%clk 0:00:02]} 42. Be7 {[%clk 0:00:09]}  Rg8 {[%clk 0:00:02]} 43. Qf2 {[%clk 0:00:05]}  Kh7 {[%clk 0:00:02]} 44. Qe2 {[%clk 0:00:05]}  a5 {[%clk 0:00:03]} 45. Bc5 {[%clk 0:00:05]}  a4 {[%clk 0:00:03]} 46. Ba3 {[%clk 0:00:05]}  Rc8 {[%clk 0:00:02]} 47. Kh2 {[%clk 0:00:03]}  f4 {[%clk 0:00:03]} 48. Bb4 {[%clk 0:00:01]}  Rc2 {[%clk 0:00:03]} 49. Qf1 {[%clk 0:00:02]}  Rb2 {[%clk 0:00:03]} 50. Bc3 {[%clk 0:00:02]}  Rb3 {[%clk 0:00:03]} 51. Bd2 {[%clk 0:00:01]}  a3 {[%clk 0:00:04]} 52. Bxf4 {[%clk 0:00:02]}  Rb2 {[%clk 0:00:05]} 53. Bg3 {[%clk 0:00:02]}  a2 {[%clk 0:00:05]} 54. Qc1 {[%clk 0:00:02]}  h4 {[%clk 0:00:04]} 55. Qc7+ {[%clk 0:00:02]}  Kh6 {[%clk 0:00:04]} 56. Bf4+ {[%clk 0:00:02]}  Kh5 {[%clk 0:00:05]} 57. Qc1 {[%clk 0:00:02]}  Qxg2# {[%clk 0:00:05]} 0-1


[Site "https://www.chess.com"]

[Event "Titled Tuesday Blitz May 2 Late 2023"]
[White "Bilych, Olexiy"]
[Black "Henriquez Villagra, Cristobal"]
[WhiteFideId "14156504"]
[BlackFideId "3409350"]
[WhiteElo "2320"]
[BlackElo "2542"]
[Result "1-0"]
[Round "10"]
[TimeControl "180+2"]
[Date "2023.05.02"]
[WhiteClock "0:01:25"]
[BlackClock "0:00:48"]

1. d4 {[%clk 0:03:00]}  Nf6 {[%clk 0:02:58]} 2. c4 {[%clk 0:03:01]}  e6 {[%clk 0:02:59]} 3. Nf3 {[%clk 0:03:01]}  d5 {[%clk 0:02:59]} 4. Nc3 {[%clk 0:03:02]}  c6 {[%clk 0:02:59]} 5. Bg5 {[%clk 0:03:02]}  Be7 {[%clk 0:03:00]} 6. e3 {[%clk 0:03:01]}  Nbd7 {[%clk 0:02:59]} 7. Bd3 {[%clk 0:02:58]}  dxc4 {[%clk 0:02:57]} 8. Bxc4 {[%clk 0:02:59]}  b5 {[%clk 0:02:58]} 9. Bd3 {[%clk 0:02:59]}  Bb7 {[%clk 0:02:58]} 10. O-O {[%clk 0:02:57]}  O-O {[%clk 0:02:58]} 11. Rc1 {[%clk 0:02:52]}  Rc8 {[%clk 0:02:56]} 12. Bxf6 {[%clk 0:02:49]}  Nxf6 {[%clk 0:02:53]} 13. Ne4 {[%clk 0:02:46]}  Nxe4 {[%clk 0:02:43]} 14. Bxe4 {[%clk 0:02:47]}  f5 {[%clk 0:02:44]} 15. Bd3 {[%clk 0:02:40]}  a6 {[%clk 0:02:37]} 16. Qb3 {[%clk 0:02:36]}  Qd5 {[%clk 0:02:23]} 17. Bc4 {[%clk 0:02:33]}  bxc4 {[%clk 0:01:39]} 18. Qxb7 {[%clk 0:02:34]}  Bd6 {[%clk 0:01:37]} 19. Qxa6 {[%clk 0:02:30]}  Ra8 {[%clk 0:01:37]} 20. Qxc4 {[%clk 0:02:30]}  Rxa2 {[%clk 0:01:37]} 21. Qxc6 {[%clk 0:02:28]}  Rxb2 {[%clk 0:01:36]} 22. Qxd5 {[%clk 0:02:24]}  exd5 {[%clk 0:01:37]} 23. g3 {[%clk 0:02:23]}  Rb6 {[%clk 0:01:35]} 24. Rc2 {[%clk 0:02:17]}  h6 {[%clk 0:01:34]} 25. h4 {[%clk 0:02:15]}  Kf7 {[%clk 0:01:33]} 26. h5 {[%clk 0:02:13]}  Ke6 {[%clk 0:01:33]} 27. Rfc1 {[%clk 0:02:13]}  Rfb8 {[%clk 0:01:31]} 28. Kg2 {[%clk 0:02:12]}  Kf6 {[%clk 0:01:27]} 29. Rc6 {[%clk 0:02:12]}  Ke6 {[%clk 0:01:26]} 30. Rxb6 {[%clk 0:01:54]}  Rxb6 {[%clk 0:01:26]} 31. Rc8 {[%clk 0:01:54]}  Kf6 {[%clk 0:01:08]} 32. Ra8 {[%clk 0:01:49]}  Rc6 {[%clk 0:01:06]} 33. Ra5 {[%clk 0:01:48]}  Ke6 {[%clk 0:01:05]} 34. Nh4 {[%clk 0:01:46]}  Rc7 {[%clk 0:00:57]} 35. Kf3 {[%clk 0:01:44]}  Rd7 {[%clk 0:00:56]} 36. Rb5 {[%clk 0:01:39]}  Bc7 {[%clk 0:00:51]} 37. Rb7 {[%clk 0:01:33]}  Kf6 {[%clk 0:00:48]} 38. Ng6 {[%clk 0:01:25]} 1-0


[Site "https://www.chess.com"]

[Event "Titled Tuesday Blitz May 2 Late 2023"]
[White "Naroditsky, Daniel"]
[Black "Seemann, Jakub"]
[WhiteFideId "2026961"]
[BlackFideId "21874697"]
[WhiteElo "2633"]
[BlackElo "2364"]
[Result "1-0"]
[Round "10"]
[TimeControl "180+2"]
[Date "2023.05.02"]
[WhiteClock "0:02:46"]
[BlackClock "0:01:37"]

1. e4 {[%clk 0:03:00]}  c6 {[%clk 0:02:58]} 2. d4 {[%clk 0:03:01]}  d5 {[%clk 0:02:58]} 3. f3 {[%clk 0:03:02]}  e6 {[%clk 0:02:56]} 4. Nc3 {[%clk 0:03:01]}  Bb4 {[%clk 0:02:57]} 5. a3 {[%clk 0:03:02]}  Ba5 {[%clk 0:02:56]} 6. Be3 {[%clk 0:03:01]}  Ne7 {[%clk 0:02:49]} 7. Bd3 {[%clk 0:03:01]}  O-O {[%clk 0:02:49]} 8. Ne2 {[%clk 0:03:02]}  Nd7 {[%clk 0:02:48]} 9. O-O {[%clk 0:03:02]}  Bc7 {[%clk 0:02:48]} 10. Qe1 {[%clk 0:03:02]}  a6 {[%clk 0:02:38]} 11. f4 {[%clk 0:03:01]}  dxe4 {[%clk 0:02:34]} 12. Nxe4 {[%clk 0:03:02]}  Nf5 {[%clk 0:02:29]} 13. Bf2 {[%clk 0:03:01]}  Nf6 {[%clk 0:02:28]} 14. c3 {[%clk 0:03:02]}  Nxe4 {[%clk 0:02:23]} 15. Bxe4 {[%clk 0:03:03]}  Bd7 {[%clk 0:02:24]} 16. Qb1 {[%clk 0:03:02]}  h6 {[%clk 0:02:23]} 17. Qd3 {[%clk 0:03:03]}  Nd6 {[%clk 0:02:22]} 18. Bf3 {[%clk 0:03:03]}  Qe7 {[%clk 0:02:08]} 19. Rae1 {[%clk 0:02:59]}  Rad8 {[%clk 0:02:07]} 20. Ng3 {[%clk 0:02:59]}  g6 {[%clk 0:02:02]} 21. Qd2 {[%clk 0:02:56]}  Qf6 {[%clk 0:02:01]} 22. Ne2 {[%clk 0:02:51]}  h5 {[%clk 0:01:57]} 23. Nc1 {[%clk 0:02:50]}  Nf5 {[%clk 0:01:57]} 24. Nd3 {[%clk 0:02:50]}  Bd6 {[%clk 0:01:54]} 25. Ne5 {[%clk 0:02:51]}  c5 {[%clk 0:01:53]} 26. Nxd7 {[%clk 0:02:47]}  Rxd7 {[%clk 0:01:54]} 27. dxc5 {[%clk 0:02:47]}  Rfd8 {[%clk 0:01:42]} 28. cxd6 {[%clk 0:02:46]}  Rxd6 {[%clk 0:01:43]} 29. Qc1 {[%clk 0:02:46]}  Rd2 {[%clk 0:01:37]} 30. Rd1 {[%clk 0:02:46]} 1-0


[Site "https://www.chess.com"]

[Event "Titled Tuesday Blitz May 2 Late 2023"]
[White "Terry, Renato"]
[Black "Santos Ruiz, Miguel"]
[WhiteFideId "3803457"]
[BlackFideId "22291482"]
[WhiteElo "2575"]
[BlackElo "2504"]
[Result "1-0"]
[Round "10"]
[TimeControl "180+2"]
[Date "2023.05.02"]
[WhiteClock "0:00:02"]
[BlackClock "0:00:03"]

1. a3 {[%clk 0:03:00]}  e5 {[%clk 0:02:59]} 2. b4 {[%clk 0:02:59]}  d5 {[%clk 0:02:59]} 3. Bb2 {[%clk 0:02:59]}  Bd6 {[%clk 0:02:59]} 4. e3 {[%clk 0:02:59]}  Nf6 {[%clk 0:03:00]} 5. c4 {[%clk 0:03:00]}  c6 {[%clk 0:02:58]} 6. Nf3 {[%clk 0:02:48]}  Qe7 {[%clk 0:02:58]} 7. cxd5 {[%clk 0:02:45]}  cxd5 {[%clk 0:02:57]} 8. Nc3 {[%clk 0:02:46]}  Nc6 {[%clk 0:02:41]} 9. d4 {[%clk 0:02:37]}  e4 {[%clk 0:02:32]} 10. Nd2 {[%clk 0:02:36]}  O-O {[%clk 0:02:31]} 11. Be2 {[%clk 0:02:34]}  Qe6 {[%clk 0:02:19]} 12. g4 {[%clk 0:02:06]}  Ne7 {[%clk 0:01:50]} 13. h3 {[%clk 0:01:56]}  h6 {[%clk 0:01:43]} 14. Nb5 {[%clk 0:01:49]}  Bb8 {[%clk 0:01:37]} 15. Rc1 {[%clk 0:01:49]}  a6 {[%clk 0:01:30]} 16. Nc3 {[%clk 0:01:45]}  Bd7 {[%clk 0:01:26]} 17. Na4 {[%clk 0:01:43]}  b6 {[%clk 0:01:26]} 18. Qb3 {[%clk 0:01:38]}  Ng6 {[%clk 0:01:21]} 19. h4 {[%clk 0:01:18]}  Nxg4 {[%clk 0:00:56]} 20. Nxb6 {[%clk 0:00:15]}  Qxb6 {[%clk 0:00:47]} 21. Qxd5 {[%clk 0:00:15]}  Ra7 {[%clk 0:00:33]} 22. h5 {[%clk 0:00:13]}  Ne7 {[%clk 0:00:25]} 23. Qxe4 {[%clk 0:00:10]}  Qe6 {[%clk 0:00:21]} 24. Qg2 {[%clk 0:00:07]}  Nxe3 {[%clk 0:00:15]} 25. fxe3 {[%clk 0:00:05]}  Qxe3 {[%clk 0:00:14]} 26. Rc3 {[%clk 0:00:05]}  Qe6 {[%clk 0:00:10]} 27. O-O {[%clk 0:00:02]}  Nf5 {[%clk 0:00:09]} 28. Bg4 {[%clk 0:00:02]}  Qd6 {[%clk 0:00:03]} 29. Bxf5 {[%clk 0:00:02]}  Bxf5 {[%clk 0:00:03]} 30. Rxf5 {[%clk 0:00:03]}  Qxd4+ {[%clk 0:00:03]} 31. Kf1 {[%clk 0:00:02]}  Re7 {[%clk 0:00:03]} 32. Rb3 {[%clk 0:00:02]} 1-0


[Site "https://www.chess.com"]

[Event "Titled Tuesday Blitz May 2 Late 2023"]
[White "Sieciechowicz, Marcin"]
[Black "Muradli, Mahammad"]
[WhiteFideId "1130170"]
[BlackFideId "13409301"]
[WhiteElo "2302"]
[BlackElo "2558"]
[Result "1/2-1/2"]
[Round "10"]
[TimeControl "180+2"]
[Date "2023.05.02"]
[WhiteClock "0:00:04"]
[BlackClock "0:00:03"]

1. d4 {[%clk 0:03:00]}  Nf6 {[%clk 0:02:58]} 2. Bf4 {[%clk 0:03:01]}  d6 {[%clk 0:02:57]} 3. e3 {[%clk 0:03:01]}  Nbd7 {[%clk 0:02:57]} 4. h3 {[%clk 0:03:01]}  e5 {[%clk 0:02:57]} 5. dxe5 {[%clk 0:03:00]}  dxe5 {[%clk 0:02:58]} 6. Bh2 {[%clk 0:03:00]}  Bd6 {[%clk 0:02:58]} 7. Nd2 {[%clk 0:02:59]}  Qe7 {[%clk 0:02:48]} 8. Nc4 {[%clk 0:02:58]}  b6 {[%clk 0:02:39]} 9. Nf3 {[%clk 0:02:55]}  Bb7 {[%clk 0:02:36]} 10. Nxd6+ {[%clk 0:02:51]}  cxd6 {[%clk 0:02:35]} 11. Be2 {[%clk 0:02:51]}  O-O {[%clk 0:02:32]} 12. O-O {[%clk 0:02:51]}  Rfd8 {[%clk 0:02:29]} 13. c4 {[%clk 0:02:51]}  Rac8 {[%clk 0:02:29]} 14. Rc1 {[%clk 0:02:49]}  Nc5 {[%clk 0:02:25]} 15. b4 {[%clk 0:02:42]}  Nce4 {[%clk 0:02:21]} 16. Qb3 {[%clk 0:02:42]}  h6 {[%clk 0:02:16]} 17. Rfd1 {[%clk 0:02:42]}  Ba8 {[%clk 0:02:00]} 18. Qb2 {[%clk 0:02:42]}  Qb7 {[%clk 0:01:59]} 19. Rc2 {[%clk 0:02:09]}  Rd7 {[%clk 0:01:29]} 20. Rdc1 {[%clk 0:02:08]}  Rdc7 {[%clk 0:01:28]} 21. a3 {[%clk 0:01:58]}  Ng5 {[%clk 0:01:26]} 22. c5 {[%clk 0:01:30]}  bxc5 {[%clk 0:01:22]} 23. bxc5 {[%clk 0:01:30]}  Qxb2 {[%clk 0:01:23]} 24. Rxb2 {[%clk 0:01:30]}  Bxf3 {[%clk 0:01:11]} 25. gxf3 {[%clk 0:01:30]}  Rxc5 {[%clk 0:00:59]} 26. Rxc5 {[%clk 0:01:29]}  Rxc5 {[%clk 0:01:00]} 27. Rb8+ {[%clk 0:01:09]}  Kh7 {[%clk 0:00:58]} 28. Rb7 {[%clk 0:00:59]}  e4 {[%clk 0:00:11]} 29. Bxd6 {[%clk 0:00:46]}  Rc1+ {[%clk 0:00:06]} 30. Kg2 {[%clk 0:00:45]}  Rc2 {[%clk 0:00:06]} 31. f4 {[%clk 0:00:28]}  Rxe2 {[%clk 0:00:04]} 32. fxg5 {[%clk 0:00:28]}  hxg5 {[%clk 0:00:04]} 33. Rxf7 {[%clk 0:00:22]}  Nd5 {[%clk 0:00:05]} 34. Kg3 {[%clk 0:00:18]}  Kg6 {[%clk 0:00:04]} 35. Rxa7 {[%clk 0:00:18]}  Re1 {[%clk 0:00:05]} 36. Be5 {[%clk 0:00:18]}  Kf5 {[%clk 0:00:03]} 37. Bd4 {[%clk 0:00:16]}  g6 {[%clk 0:00:02]} 38. Ra5 {[%clk 0:00:15]}  Ke6 {[%clk 0:00:02]} 39. Ra6+ {[%clk 0:00:15]}  Kf7 {[%clk 0:00:02]} 40. Rd6 {[%clk 0:00:15]}  Ne7 {[%clk 0:00:03]} 41. Rf6+ {[%clk 0:00:15]}  Kg8 {[%clk 0:00:02]} 42. Kg2 {[%clk 0:00:14]}  Nf5 {[%clk 0:00:01]} 43. Rxg6+ {[%clk 0:00:12]}  Kh7 {[%clk 0:00:02]} 44. Rxg5 {[%clk 0:00:11]}  Nh4+ {[%clk 0:00:03]} 45. Kg3 {[%clk 0:00:11]}  Nf3 {[%clk 0:00:03]} 46. Rg7+ {[%clk 0:00:08]}  Kh6 {[%clk 0:00:04]} 47. Rd7 {[%clk 0:00:08]}  Kg5 {[%clk 0:00:03]} 48. Rg7+ {[%clk 0:00:06]}  Kf5 {[%clk 0:00:03]} 49. Rf7+ {[%clk 0:00:05]}  Kg5 {[%clk 0:00:02]} 50. Rxf3 {[%clk 0:00:05]}  exf3 {[%clk 0:00:02]} 51. Kxf3 {[%clk 0:00:06]}  Kf5 {[%clk 0:00:01]} 52. Bb6 {[%clk 0:00:04]}  Ra1 {[%clk 0:00:01]} 53. Bc5 {[%clk 0:00:04]}  Rb1 {[%clk 0:00:01]} 54. Kg3 {[%clk 0:00:04]}  Rg1+ {[%clk 0:00:01]} 55. Kh2 {[%clk 0:00:04]}  Rc1 {[%clk 0:00:02]} 56. Bd4 {[%clk 0:00:03]}  Ke4 {[%clk 0:00:03]} 57. Kg2 {[%clk 0:00:03]}  Rc2 {[%clk 0:00:03]} 58. h4 {[%clk 0:00:03]}  Rc6 {[%clk 0:00:03]} 59. Kg3 {[%clk 0:00:02]}  Rg6+ {[%clk 0:00:04]} 60. Kh3 {[%clk 0:00:02]}  Kf3 {[%clk 0:00:05]} 61. a4 {[%clk 0:00:02]}  Rg1 {[%clk 0:00:05]} 62. Kh2 {[%clk 0:00:02]}  Rg4 {[%clk 0:00:05]} 63. Kh3 {[%clk 0:00:02]}  Rg1 {[%clk 0:00:04]} 64. Kh2 {[%clk 0:00:02]}  Rg8 {[%clk 0:00:04]} 65. Bf6 {[%clk 0:00:02]}  Rg2+ {[%clk 0:00:04]} 66. Kh3 {[%clk 0:00:02]}  Rxf2 {[%clk 0:00:05]} 67. h5 {[%clk 0:00:02]}  Rf1 {[%clk 0:00:05]} 68. Kh4 {[%clk 0:00:02]}  Ke4 {[%clk 0:00:03]} 69. Bg5 {[%clk 0:00:02]}  Kf5 {[%clk 0:00:02]} 70. Bf4 {[%clk 0:00:02]}  Rh1+ {[%clk 0:00:03]} 71. Kg3 {[%clk 0:00:02]}  Rxh5 {[%clk 0:00:03]} 72. a5 {[%clk 0:00:03]}  Ke4 {[%clk 0:00:03]} 73. a6 {[%clk 0:00:01]}  Ra5 {[%clk 0:00:03]} 74. Kg4 {[%clk 0:00:02]}  Rxa6 {[%clk 0:00:03]} 75. Kg3 {[%clk 0:00:02]}  Rg6+ {[%clk 0:00:03]} 76. Kf2 {[%clk 0:00:02]}  Rg4 {[%clk 0:00:04]} 77. Ke2 {[%clk 0:00:02]}  Rg2+ {[%clk 0:00:04]} 78. Kd1 {[%clk 0:00:03]}  Ra2 {[%clk 0:00:04]} 79. Kc1 {[%clk 0:00:03]}  Kd3 {[%clk 0:00:05]} 80. Kb1 {[%clk 0:00:04]}  Re2 {[%clk 0:00:05]} 81. Kc1 {[%clk 0:00:04]}  Kc3 {[%clk 0:00:06]} 82. Kd1 {[%clk 0:00:04]}  Kd3 {[%clk 0:00:06]} 83. Kc1 {[%clk 0:00:04]}  Rd2 {[%clk 0:00:07]} 84. Kb1 {[%clk 0:00:04]}  Rc2 {[%clk 0:00:06]} 85. Ka1 {[%clk 0:00:04]}  Kc3 {[%clk 0:00:05]} 86. Kb1 {[%clk 0:00:05]}  Kb3 {[%clk 0:00:06]} 87. Be5 {[%clk 0:00:04]}  Rc5 {[%clk 0:00:04]} 88. Bd4 {[%clk 0:00:04]}  Rc4 {[%clk 0:00:04]} 89. Be5 {[%clk 0:00:04]}  Rc5 {[%clk 0:00:04]} 90. Bd4 {[%clk 0:00:04]}  Rc2 {[%clk 0:00:05]} 91. Be5 {[%clk 0:00:04]}  Re2 {[%clk 0:00:06]} 92. Kc1 {[%clk 0:00:04]}  Rxe3 {[%clk 0:00:06]} 93. Bd4 {[%clk 0:00:04]}  Rd3 {[%clk 0:00:07]} 94. Be5 {[%clk 0:00:04]}  Rd5 {[%clk 0:00:07]} 95. Bf6 {[%clk 0:00:04]}  Rd6 {[%clk 0:00:04]} 96. Bg7 {[%clk 0:00:04]}  Rd7 {[%clk 0:00:03]} 97. Bf6 {[%clk 0:00:05]}  Kc4 {[%clk 0:00:03]} 98. Kc2 {[%clk 0:00:04]}  Rf7 {[%clk 0:00:04]} 99. Be5 {[%clk 0:00:04]}  Rf2+ {[%clk 0:00:04]} 100. Kc1 {[%clk 0:00:04]}  Kd3 {[%clk 0:00:05]} 101. Bg7 {[%clk 0:00:03]}  Rc2+ {[%clk 0:00:05]} 102. Kb1 {[%clk 0:00:04]}  Rg2 {[%clk 0:00:06]} 103. Bf6 {[%clk 0:00:03]}  Rf2 {[%clk 0:00:05]} 104. Bg7 {[%clk 0:00:03]}  Rf7 {[%clk 0:00:03]} 105. Bh8 {[%clk 0:00:03]}  Kd2 {[%clk 0:00:01]} 106. Kb2 {[%clk 0:00:03]}  Rb7+ {[%clk 0:00:02]} 107. Ka3 {[%clk 0:00:03]}  Kd3 {[%clk 0:00:03]} 108. Ka4 {[%clk 0:00:03]}  Kc4 {[%clk 0:00:04]} 109. Ka3 {[%clk 0:00:04]}  Rg7 {[%clk 0:00:03]} 110. Bxg7 {[%clk 0:00:04]} 1/2-1/2


[Site "https://www.chess.com"]